bitfinex/quotes_SOLUSD_20240813
["timestamp","ask_amount","ask_price","bid_price","bid_amount"]
[1723537542922,6.8853,145.24,145.21,15.4947]
[1723537543138,6.8856,145.23,145.21,15.4947]
[1723537543516,17.2092,145.28,145.22,1.3918]
[1723537543840,6.8846,145.26,145.22,1.3918]
[1723537544015,6.8846,145.26,145.22,2.7687529]
[1723537544217,26.8838,145.27,145.22,1.3918]
[1723537544438,26.8838,145.27,145.22,46.3918]
[1723537544819,26.8838,145.27,145.23,0.12549]
[1723537545120,20.0,145.27,145.23,0.50196]
[1723537545740,6.8833,145.28,145.23,0.50196]
[1723537545921,6.8838,145.27,145.23,0.50196]
[1723537546324,17.2047,145.31,145.23,0.12549]
[1723537546645,6.8846,145.25,145.22,46.3918]
[1723537547221,6.8851,145.24,145.22,1.3918]
[1723537547440,6.8847,145.25,145.22,1.3918]
[1723537547937,6.8856,145.23,145.22,1.3918]
[1723537548332,17.2078,145.29,145.22,1.3918]
[1723537548333,6.8852,145.24,145.22,1.3918]
[1723537549144,39.5095,145.32,145.22,1.3918]
[1723537549349,20.0,145.31,145.22,46.3918]
[1723537549520,6.8847,145.25,145.22,46.3918]
[1723537550370,6.8842,145.26,145.22,46.3918]
[1723537550743,17.2066,145.3,145.22,1.3918]
[1723537551059,6.8856,145.24,145.22,1.3918]
[1723537551946,6.8846,145.26,145.22,1.3918]
[1723537552347,6.8848,145.25,145.22,1.3918]
[1723537553166,6.8844,145.26,145.22,1.3918]
[1723537554062,6.8832,145.28,145.23,1.37684572]
[1723537554374,6.8837,145.27,145.23,0.12549]
[1723537554541,16.0841,145.32,145.23,0.37647]
[1723537554743,20.0,145.31,145.23,0.37647]
[1723537554946,20.0,145.31,145.24,6.8851]
[1723537555166,6.8829,145.29,145.23,7.26197]
[1723537555365,17.2024,145.33,145.25,0.12549]
[1723537555569,6.8823,145.3,145.25,0.37647]
[1723537555756,6.8823,145.3,145.25,45.37647]
[1723537556871,39.2781,145.36,145.26,0.12549]
[1723537557167,6.8819,145.31,145.26,0.37647]
[1723537557361,39.2781,145.36,145.26,0.37647]
[1723537557362,26.8823,145.3,145.26,0.37647]
[1723537557555,6.8823,145.3,145.26,0.37647]
[1723537558558,6.8818,145.31,145.27,16.38689]
[1723537558757,6.8818,145.31,145.28,45.12549]
[1723537558946,17.2019,145.34,145.27,16.2614]
[1723537559457,6.8832,145.28,145.27,16.2614]
[1723537559773,6.8822,145.31,145.27,61.2614]
[1723537560178,6.8824,145.3,145.27,61.2614]
[1723537560465,6.8819,145.31,145.27,61.2614]
[1723537560668,20.0,145.3,145.27,61.2614]
[1723537560867,17.2019,145.34,145.27,16.2614]
[1723537561193,6.8831,145.29,145.27,16.2614]
[1723537561746,6.8822,145.31,145.27,16.2614]
[1723537562067,20.0,145.33,145.27,16.2614]
[1723537562373,26.8809,145.33,145.28,45.0]
[1723537562593,20.0,145.33,145.28,45.0]
[1723537562769,20.0,145.35,145.28,45.0]
[1723537562951,37.2005,145.35,145.27,16.2614]
[1723537563151,6.8831,145.29,145.27,16.2614]
[1723537563659,37.2005,145.35,145.27,16.2614]
[1723537563660,6.8823,145.3,145.27,16.2614]
[1723537563870,6.8819,145.31,145.27,16.2614]
[1723537564067,6.8824,145.3,145.27,16.2614]
[1723537564449,37.2005,145.35,145.27,16.2614]
[1723537564651,6.8832,145.28,145.27,16.2614]
[1723537564954,6.8832,145.28,145.24,6.4232]
[1723537565981,6.8826,145.3,145.25,7.13558]
[1723537566183,6.8826,145.3,145.26,45.0]
[1723537566750,20.0,145.35,145.26,51.8839]
[1723537566751,6.8819,145.31,145.26,51.8839]
[1723537566950,6.8819,145.31,145.27,0.12549]
[1723537566951,20.0,145.3,145.27,0.12549]
[1723537567162,20.0,145.3,145.27,0.25098]
[1723537567654,15.4139,145.36,145.28,0.25098]
[1723537567849,6.8815,145.32,145.28,45.25098]
[1723537568445,6.8818,145.31,145.28,45.25098]
[1723537568650,6.8818,145.31,145.28,0.25098]
[1723537568889,17.2005,145.35,145.27,45.0]
[1723537569184,20.0,145.34,145.27,45.0]
[1723537569480,6.8814,145.32,145.28,0.12549]
[1723537570163,6.8814,145.32,145.28,0.37647]
[1723537570472,6.8823,145.3,145.28,0.12549]
[1723537571479,6.8823,145.3,145.27,45.0]
[1723537571654,6.8829,145.29,145.26,45.0]
[1723537571850,6.8829,145.29,145.25,0.12549]
[1723537572089,20.0,145.34,145.24,6.4232]
[1723537572090,6.8842,145.26,145.24,6.4232]
[1723537572263,17.2075,145.29,145.22,1.3918]
[1723537572470,20.0,145.28,145.22,1.3918]
[1723537573174,6.8847,145.25,145.22,1.3918]
[1723537573499,6.8838,145.27,145.22,1.3918]
[1723537573659,20.0,145.29,145.22,8.2776]
[1723537573866,6.8833,145.28,145.23,7.13638]
[1723537574283,6.8833,145.28,145.24,45.0]
[1723537575100,20.0,145.31,145.25,16.1697]
[1723537575280,17.2054,145.31,145.22,1.3918]
[1723537575595,6.8842,145.26,145.22,1.3918]
[1723537576265,17.2054,145.31,145.22,1.3918]
[1723537576266,6.8856,145.23,145.22,1.3918]
[1723537576464,17.2087,145.28,145.22,1.3918]
[1723537576672,6.8846,145.25,145.22,1.3918]
[1723537576977,20.0,145.27,145.22,1.3918]
[1723537577189,6.2961,145.32,145.22,1.3918]
[1723537577190,6.8856,145.23,145.22,1.3918]
[1723537577768,6.885,145.25,145.22,1.3918]
[1723537578469,6.8847,145.25,145.22,1.3918]
[1723537579467,17.2095,145.27,145.22,1.3918]
[1723537579677,6.8856,145.23,145.22,1.3918]
[1723537579883,26.8856,145.23,145.22,1.3918]
[1723537583111,6.8889,145.16,145.15,15.8787]
[1723537583407,6.8896,145.15,145.11,16.2513]
[1723537583600,6.889,145.16,145.11,16.2513]
[1723537584111,33.7733,145.21,145.11,16.2513]
[1723537586584,20.0,145.17,145.13,45.25098]
[1723537586783,20.0,145.17,145.09,6.1725]
[1723537587710,6.8899,145.14,145.09,6.1725]
[1723537587919,20.0,145.17,145.09,6.1725]
[1723537588119,20.0,145.17,145.09,13.0647]
[1723537588328,6.8899,145.14,145.09,6.1725]
[1723537588628,20.0,145.17,145.09,6.1725]
[1723537588629,6.8904,145.13,145.09,6.1725]
[1723537589322,20.0,145.17,145.09,6.1725]
[1723537589323,6.8917,145.11,145.09,6.1725]
[1723537589641,6.8908,145.12,145.09,6.1725]
[1723537590126,20.0,145.17,145.09,6.1725]
[1723537590327,20.0,145.17,145.07,16.6825021]
[1723537590505,6.8913,145.11,145.07,16.6825021]
[1723537590712,20.0,145.17,145.07,16.6825021]
[1723537590713,6.8927,145.09,145.07,0.8348021]
[1723537591726,6.8927,145.08,145.07,0.8348021]
[1723537592331,26.8927,145.08,145.07,0.8348021]
[1723537594327,20.0,145.08,145.07,0.8348021]
[1723537594546,17.2272,145.12,145.07,0.8348021]
[1723537594703,6.8918,145.1,145.07,0.8348021]
[1723537594906,6.8922,145.09,145.07,0.8348021]
[1723537595330,20.0,145.11,145.07,0.8348021]
[1723537595331,6.8918,145.1,145.07,0.8348021]
[1723537595530,20.0,145.11,145.07,0.8348021]
[1723537595696,6.8927,145.08,145.07,0.8348021]
[1723537595902,6.8925,145.09,145.07,0.8348021]
[1723537596110,6.8927,145.08,145.07,0.8348021]
[1723537596809,26.8927,145.08,145.07,0.8348021]
[1723537600713,6.8923,145.09,145.07,0.8348021]
[1723537601017,6.8917,145.11,145.07,0.8348021]
[1723537601533,6.8909,145.12,145.07,17.1768021]
[1723537601743,17.2246,145.15,145.07,17.1768021]
[1723537601744,17.2246,145.15,145.07,23.2329021]
[1723537602221,20.0,145.17,145.07,0.8348021]
[1723537602843,17.227,145.13,145.07,0.8348021]
[1723537603030,20.0,145.12,145.07,0.8348021]
[1723537603359,6.8927,145.08,145.07,0.8348021]
[1723537604253,20.0,145.12,145.07,0.8348021]
[1723537604470,6.8927,145.08,145.07,0.8348021]
[1723537606270,26.8927,145.08,145.07,0.8348021]
[1723537608750,26.8927,145.08,145.07,2.1e-06]
[1723537608751,47.14368,145.08,145.07,2.1e-06]
[1723537609060,6.8962,145.01,144.96,23.0082]
[1723537610254,17.2346,145.06,144.96,29.9064]
[1723537610438,6.8964,145.01,144.96,23.0082]
[1723537611728,17.2346,145.06,144.96,23.0082]
[1723537611952,6.8967,145.0,144.96,23.0082]
[1723537612153,6.8961,145.01,144.96,23.0082]
[1723537612835,17.2346,145.06,144.95,17.2471]
[1723537613036,20.0,145.05,144.95,17.2471]
[1723537613328,20.0,145.05,144.93,0.8348021]
[1723537613329,6.8974,144.99,144.93,7.7345021]
[1723537614157,6.8986,144.96,144.93,0.8348021]
[1723537614535,6.8979,144.97,144.93,0.8348021]
[1723537614735,6.8987,144.96,144.93,0.8348021]
[1723537614936,6.898,144.97,144.93,0.8348021]
[1723537615241,6.8977,144.98,144.93,0.8348021]
[1723537615448,17.2406,145.01,144.93,0.8348021]
[1723537615635,6.8975,144.98,144.93,0.8348021]
[1723537615836,20.0,145.0,144.93,18.0836021]
[1723537616049,17.2369,145.04,144.93,18.0836021]
[1723537616239,6.8964,145.01,144.95,6.8985]
[1723537616565,6.8972,144.99,144.94,51.8993]
[1723537616752,20.0,145.03,144.95,17.2463]
[1723537616941,6.896,145.02,144.97,6.8978]
[1723537617143,6.8961,145.01,144.96,15.1776]
[1723537617651,6.8957,145.02,144.96,15.1776]
[1723537617830,9.41268315,145.08,144.97,23.87989]
[1723537617831,2.79078315,145.08,144.97,23.87989]
[1723537618029,6.8937,145.06,145.01,15.1776]
[1723537618236,6.895,145.04,145.01,15.1776]
[1723537618660,6.8942,145.05,145.01,15.1776]
[1723537619438,6.8955,145.03,145.01,15.1776]
[1723537619643,17.2315,145.09,145.01,15.1776]
[1723537619842,20.0,145.08,145.01,15.1776]
[1723537620049,6.8942,145.05,145.01,15.1776]
[1723537620277,6.8937,145.06,145.01,15.1776]
[1723537620647,6.8933,145.07,145.01,15.1776]
[1723537620866,20.0,145.08,145.01,15.1776]
[1723537620867,16.2157,145.11,145.01,32.4167]
[1723537621062,16.2157,145.11,145.02,6.8954]
[1723537621293,6.8941,145.05,145.01,15.1776]
[1723537621483,6.8937,145.06,145.01,15.1776]
[1723537621771,6.8931,145.08,145.03,6.2565]
[1723537621979,6.8923,145.09,145.03,23.4943]
[1723537622269,51.6765,145.14,145.03,23.4943]
[1723537622270,6.8917,145.11,145.06,16.3644]
[1723537622478,6.8917,145.11,145.06,23.2579]
[1723537622772,17.2213,145.17,145.06,16.3644]
[1723537622976,6.8904,145.13,145.07,6.8928]
[1723537623145,6.8904,145.13,145.08,6.8926]
[1723537623467,6.8893,145.16,145.1,13.1422]
[1723537623761,15.9907,145.19,145.1,13.1422]
[1723537623762,6.8896,145.15,145.1,6.2505]
[1723537623966,17.2207,145.18,145.1,6.2505]
[1723537624171,6.8921,145.1,145.06,22.6149]
[1723537624341,6.8914,145.11,145.06,29.5085]
[1723537624539,17.2232,145.16,145.06,29.5085]
[1723537624540,6.8907,145.13,145.07,6.8927]
[1723537624761,17.2187,145.2,145.08,62.35639]
[1723537624963,6.8885,145.17,145.12,22.0147]
[1723537625190,6.8896,145.15,145.12,22.0147]
[1723537625572,6.8889,145.16,145.12,22.0147]
[1723537625776,49.19446819,145.23,145.12,22.0147]
[1723537625985,46.45939171,145.23,145.12,22.0147]
[1723537626158,6.8885,145.17,145.12,22.0147]
[1723537626579,6.888,145.18,145.12,28.9054]
[1723537626782,6.888,145.18,145.13,6.8902]
[1723537626983,17.2142,145.23,145.12,22.0147]
[1723537626984,17.2142,145.23,145.15,6.8892]
[1723537627183,6.8873,145.2,145.14,6.8898]
[1723537627386,6.8876,145.19,145.13,7.01569]
[1723537627579,6.8876,145.19,145.14,45.0]
[1723537627891,6.8876,145.19,145.14,51.8897]
[1723537628067,6.8875,145.19,145.14,45.0]
[1723537628267,6.8875,145.19,145.14,51.8898]
[1723537628466,6.887,145.2,145.15,6.8893]
[1723537628662,34.4233,145.26,145.15,6.8893]
[1723537628864,34.4233,145.26,145.16,6.8889]
[1723537628865,6.8866,145.21,145.16,6.8889]
[1723537629173,6.8861,145.22,145.17,6.8882]
[1723537629695,17.2108,145.26,145.17,6.8882]
[1723537629696,6.8856,145.23,145.17,6.8882]
[1723537629986,28.2686,145.31,145.19,23.1608]
[1723537629987,6.8852,145.24,145.19,23.1608]
[1723537630370,6.8855,145.24,145.19,23.1608]
[1723537630579,17.2091,145.28,145.19,23.1608]
[1723537630770,34.4124,145.3,145.19,23.1608]
[1723537630771,6.8866,145.21,145.19,23.1608]
[1723537631486,6.887,145.2,145.19,23.1608]
[1723537631667,6.887,145.2,145.16,16.6569]
[1723537631871,17.2137,145.24,145.16,16.6569]
[1723537632072,20.0,145.23,145.16,16.6569]
[1723537632470,6.8876,145.19,145.16,16.6569]
[1723537632685,6.8866,145.21,145.16,23.5456]
[1723537633297,6.8872,145.2,145.16,16.6569]
[1723537633981,6.8865,145.21,145.16,16.6569]
[1723537634176,6.8865,145.21,145.16,23.5457]
[1723537634603,6.8861,145.22,145.17,6.8884]
[1723537634906,6.8857,145.23,145.18,45.0]
[1723537635285,6.8857,145.23,145.17,6.8884]
[1723537635485,6.8861,145.22,145.17,6.8884]
[1723537636314,6.8857,145.23,145.18,51.8879]
[1723537636892,6.8862,145.22,145.18,45.0]
[1723537637690,17.2125,145.25,145.16,23.5456]
[1723537637890,26.8856,145.24,145.19,6.8874]
[1723537638092,6.8856,145.24,145.19,6.8874]
[1723537638309,6.8856,145.23,145.18,17.2199]
[1723537638610,6.8861,145.22,145.16,23.5457]
[1723537638808,17.2083,145.28,145.16,23.5457]
[1723537638809,6.8866,145.21,145.16,23.5457]
[1723537639010,6.8866,145.21,145.17,45.50196]
[1723537639407,6.8861,145.22,145.17,52.39036]
[1723537639607,6.8856,145.23,145.18,6.8876]
[1723537639794,6.8856,145.23,145.19,45.0]
[1723537640115,6.8851,145.24,145.19,51.8873]
[1723537640319,6.8858,145.23,145.18,6.8879]
[1723537640613,6.8847,145.25,145.19,6.8875]
[1723537640916,6.8852,145.24,145.2,45.0]
[1723537641104,6.8852,145.24,145.19,6.8875]
[1723537641417,6.8852,145.24,145.17,17.72236]
[1723537641418,17.212,145.25,145.16,16.6569]
[1723537641722,6.8869,145.21,145.16,16.6569]
[1723537642321,6.8884,145.17,145.16,16.6569]
[1723537642490,17.2154,145.22,145.16,16.6569]
[1723537642695,6.888,145.18,145.16,16.6569]
[1723537642893,17.2154,145.22,145.16,16.6569]
[1723537643111,6.8876,145.19,145.16,16.6569]
[1723537643309,33.0186,145.25,145.16,16.6569]
[1723537643628,6.8865,145.21,145.16,23.5457]
[1723537643805,20.0,145.24,145.16,16.6569]
[1723537644318,20.0,145.24,145.16,23.5457]
[1723537644319,6.8866,145.21,145.16,23.5457]
[1723537644691,6.8866,145.21,145.16,16.6569]
[1723537645017,20.0,145.24,145.2,0.12549]
[1723537645218,40.5459069,145.29,145.2,6.8868]
[1723537645219,6.8842,145.26,145.2,6.8868]
[1723537645395,6.8848,145.25,145.21,45.0]
[1723537645800,6.8848,145.25,145.2,45.0]
[1723537646521,6.8848,145.25,145.2,51.887]
[1723537647297,6.8848,145.25,145.2,45.0]
[1723537647501,6.8848,145.25,145.19,52.38926]
[1723537648125,6.884,145.27,145.21,6.8865]
[1723537648327,26.8843,145.26,145.2,24.1034]
[1723537648528,26.8843,145.26,145.21,45.12549]
[1723537648705,6.8847,145.25,145.21,45.12549]
[1723537648905,26.8842,145.26,145.21,52.01199]
[1723537649129,20.0,145.26,145.22,24.6002268]
[1723537649327,6.8836,145.28,145.23,45.37647]
[1723537649532,6.8833,145.28,145.23,62.58967]
[1723537650106,15.8601,145.32,145.24,1.37676143]
[1723537650307,15.8601,145.32,145.23,62.58967]
[1723537650308,6.8834,145.28,145.23,62.58967]
[1723537650532,6.8838,145.27,145.23,62.58967]
[1723537650832,6.8838,145.27,145.23,45.0]
[1723537651029,6.8833,145.28,145.23,45.0]
[1723537651228,6.8833,145.28,145.23,51.8855]
[1723537651823,17.2054,145.31,145.23,45.0]
[1723537652012,17.2054,145.31,145.22,16.3373]
[1723537652214,20.0,145.3,145.22,16.3373]
[1723537652421,6.8848,145.25,145.22,16.3373]
[1723537653230,6.8843,145.26,145.22,16.3373]
[1723537653740,17.2077,145.29,145.22,16.3373]
[1723537653912,20.0,145.28,145.2,6.3794]
[1723537654234,6.8852,145.24,145.2,6.3794]
[1723537654408,20.0,145.28,145.2,6.3794]
[1723537654409,6.8851,145.25,145.2,6.3794]
[1723537654812,20.0,145.28,145.2,6.3794]
[1723537655243,6.8847,145.25,145.2,6.3794]
[1723537655657,6.8852,145.24,145.2,6.3794]
[1723537656141,6.8847,145.25,145.2,13.2662]
[1723537656322,6.8847,145.25,145.21,45.0]
[1723537656728,6.8838,145.27,145.22,6.886]
[1723537656935,20.0,145.28,145.22,0.12549]
[1723537657224,6.8836,145.28,145.23,6.8853]
[1723537657634,6.8836,145.28,145.24,45.0]
[1723537658913,6.8829,145.29,145.24,45.0]
[1723537659115,20.0,145.31,145.25,1.37675761]
[1723537659116,6.8823,145.3,145.25,1.37675761]
[1723537659425,6.8823,145.3,145.26,0.12549]
[1723537659426,20.0,145.29,145.26,0.12549]
[1723537659614,16.1669,145.36,145.26,0.12549]
[1723537659615,16.1669,145.36,145.26,69.02877]
[1723537659917,6.8829,145.29,145.26,6.4429]
[1723537660111,18.94338277,145.36,145.26,6.4429]
[1723537660511,6.8833,145.28,145.26,6.4429]
[1723537660734,17.2019,145.34,145.24,60.2519]
[1723537660735,6.8837,145.27,145.24,60.2519]
[1723537661111,17.207,145.29,145.24,15.2519]
[1723537661313,6.8846,145.25,145.24,15.2519]
[1723537661509,6.8853,145.24,145.21,15.5139]
[1723537661731,17.207,145.29,145.21,15.5139]
[1723537662041,6.8861,145.22,145.21,15.5139]
[1723537662216,50.1405,145.3,145.18,6.0871]
[1723537662411,50.1405,145.3,145.17,15.5139]
[1723537662412,17.2124,145.25,145.17,15.5139]
[1723537662642,20.0,145.24,145.17,15.5139]
[1723537662854,6.8871,145.2,145.17,15.5139]
[1723537663155,6.888,145.18,145.14,6.0871]
[1723537663362,6.8875,145.19,145.14,6.0871]
[1723537664249,6.8885,145.17,145.14,6.0871]
[1723537664448,35.7286,145.24,145.13,15.5139]
[1723537664449,6.8889,145.16,145.13,15.5139]
[1723537665350,6.8896,145.15,145.1,30.5343]
[1723537665565,6.8896,145.15,145.1,46.112]
[1723537666753,17.2172,145.21,145.1,39.2203]
[1723537666944,20.0,145.2,145.11,6.8909]
[1723537667747,6.8885,145.17,145.1,39.2203]
[1723537667948,6.888,145.18,145.1,39.2203]
[1723537668152,20.0,145.2,145.13,17.2253]
[1723537668642,15.7286,145.24,145.16,6.8888]
[1723537668643,6.8866,145.21,145.16,6.8888]
[1723537668849,6.8862,145.22,145.15,17.2226]
[1723537669044,20.0,145.31,145.15,17.2226]
[1723537669045,6.8852,145.24,145.18,6.8878]
[1723537669349,6.8852,145.24,145.19,45.0]
[1723537669739,6.8857,145.23,145.18,51.8879]
[1723537669944,6.8862,145.22,145.18,45.0]
[1723537670442,2.77986365,145.27,145.18,51.8877]
[1723537670640,6.8852,145.24,145.18,51.8877]
[1723537670958,6.8847,145.25,145.2,6.8868]
[1723537671254,6.8853,145.24,145.19,7.26387]
[1723537671444,6.8853,145.24,145.2,45.0]
[1723537671646,6.8853,145.24,145.19,0.37647]
[1723537671850,6.8847,145.25,145.19,17.59427]
[1723537672032,16.128,145.3,145.2,45.0]
[1723537672234,16.128,145.3,145.19,0.37647]
[1723537672235,20.0,145.29,145.19,0.12549]
[1723537672451,20.0,145.29,145.18,45.0]
[1723537672452,20.0,145.29,145.17,23.0997]
[1723537672645,0.12549,145.28,145.17,23.0997]
[1723537672844,20.0,145.29,145.17,23.0997]
[1723537673739,0.25098,145.28,145.17,23.0997]
[1723537674564,6.1763,145.27,145.13,15.1804]
[1723537674861,6.1763,145.27,145.13,21.3985]
[1723537674862,20.0,145.26,145.13,21.3985]
[1723537675633,15.2737,145.24,145.13,21.3985]
[1723537675945,20.0,145.23,145.13,21.3985]
[1723537676343,20.0,145.23,145.1,6.3701]
[1723537678055,20.0,145.23,145.11,0.12549]
[1723537678256,20.0,145.23,145.11,46.87976524]
[1723537678763,20.0,145.23,145.11,45.50196]
[1723537679259,0.12549,145.22,145.11,45.0]
[1723537680261,20.0,145.23,145.11,45.0]
[1723537680948,20.0,145.23,145.12,0.25098]
[1723537682438,22.72999535,145.23,145.12,0.25098]
[1723537684562,15.2737,145.24,145.13,0.37647]
[1723537684744,15.2737,145.24,145.14,0.25098]
[1723537684945,15.2737,145.24,145.16,0.12549]
[1723537685159,2.760132,145.25,145.16,1.50290881]
[1723537685359,2.760132,145.25,145.18,0.12549]
[1723537685664,22.3224,145.32,145.18,45.25098]
[1723537685884,22.3224,145.32,145.2,0.12549]
[1723537686179,25.08929168,145.32,145.19,0.25098]
[1723537687793,20.12549,145.31,145.18,45.25098]
[1723537687994,0.12549,145.3,145.18,45.12549]
[1723537688177,0.25098,145.3,145.18,45.0]
[1723537690176,0.12549,145.3,145.18,45.0]
[1723537690375,22.81265211,145.31,145.19,0.25098]
[1723537692092,35.22826367,145.31,145.19,0.12549]
[1723537692263,35.22826367,145.31,145.2,0.12549]
[1723537692264,22.81265211,145.31,145.2,0.12549]
[1723537692461,22.81265211,145.31,145.2,0.25098]
[1723537692676,22.81265211,145.31,145.2,0.37647]
[1723537693084,22.81265211,145.31,145.21,0.12549]
[1723537693085,20.0,145.31,145.21,0.12549]
[1723537693281,20.0,145.31,145.21,0.25098]
[1723537693500,20.0,145.31,145.22,6.62738]
[1723537693702,20.0,145.33,145.23,45.0]
[1723537694684,20.0,145.33,145.24,15.464]
[1723537695797,22.7836813,145.33,145.24,15.464]
[1723537696187,22.7836813,145.33,145.22,6.3764]
[1723537697196,0.12549,145.32,145.22,6.3764]
[1723537697399,22.7836813,145.33,145.22,6.3764]
[1723537698312,0.12549,145.3,145.2,15.9994]
[1723537698604,20.37647,145.3,145.2,15.9994]
[1723537698901,26.73276,145.3,145.2,15.9994]
[1723537699400,39.14910152,145.3,145.2,15.9994]
[1723537700496,39.14910152,145.3,145.19,6.2459]
[1723537700703,39.14910152,145.3,145.17,15.6781]
[1723537700704,0.12549,145.26,145.17,15.6781]
[1723537701001,20.37647,145.26,145.15,6.4526]
[1723537701214,0.12549,145.25,145.15,6.4526]
[1723537701415,0.25098,145.25,145.15,6.4526]
[1723537702095,0.12549,145.24,145.15,6.4526]
[1723537702295,20.37647,145.24,145.15,6.4526]
[1723537702623,6.8904,145.13,145.11,6.5273]
[1723537702833,16.4037,145.22,145.11,6.5273]
[1723537702990,6.889,145.16,145.11,6.5273]
[1723537703195,20.0,145.15,145.11,13.4184]
[1723537703408,26.8895,145.15,145.11,6.5273]
[1723537703609,20.0,145.15,145.11,6.5273]
[1723537703823,6.889,145.16,145.11,6.5273]
[1723537704196,6.8895,145.15,145.11,6.5273]
[1723537704398,17.2193,145.19,145.11,6.5273]
[1723537704624,20.0,145.18,145.11,6.5273]
[1723537705121,6.8907,145.13,145.11,6.5273]
[1723537705527,6.8908,145.12,145.11,6.5273]
[1723537705704,6.8908,145.12,145.09,15.5931]
[1723537705705,17.2228,145.16,145.09,15.5931]
[1723537706028,6.8913,145.11,145.09,15.5931]
[1723537706495,17.2228,145.16,145.09,15.5931]
[1723537706695,20.0,145.15,145.09,15.5931]
[1723537707011,20.0,145.15,145.09,32.8236]
[1723537707212,22.81530978,145.19,145.1,45.0]
[1723537707522,50.8349,145.22,145.1,45.0]
[1723537707523,7.14671228,145.22,145.17,17.2211]
[1723537707823,17.2083,145.28,145.18,45.0]
[1723537708032,29.62661936,145.28,145.18,45.12549]
[1723537708403,29.62676664,145.28,145.18,45.12549]
[1723537708599,6.8856,145.23,145.18,45.12549]
[1723537709004,6.8866,145.21,145.18,45.0]
[1723537709212,6.8866,145.21,145.16,0.12549]
[1723537709505,6.8866,145.21,145.16,52.39076]
[1723537709730,6.8861,145.22,145.17,1.37737708]
[1723537709938,6.8861,145.22,145.16,52.39076]
[1723537710229,6.8861,145.22,145.17,6.8883]
[1723537710536,6.8861,145.22,145.16,52.39086]
[1723537711233,17.2122,145.25,145.16,45.0]
[1723537711402,6.887,145.2,145.15,23.7848]
[1723537711602,6.8864,145.22,145.15,30.6738]
[1723537711806,6.8866,145.21,145.16,45.0]
[1723537712220,6.8866,145.21,145.17,1.37748204]
[1723537712500,6.8861,145.22,145.18,1.37739519]
[1723537713133,6.8871,145.2,145.16,45.0]
[1723537713304,6.887,145.21,145.15,30.6741]
[1723537713517,17.2122,145.25,145.15,30.6741]
[1723537713714,20.0,145.24,145.15,30.6741]
[1723537714132,6.8871,145.2,145.15,23.7848]
[1723537714814,6.8875,145.19,145.15,23.7848]
[1723537715136,20.0,145.24,145.15,23.7848]
[1723537715137,6.8871,145.2,145.15,30.6739]
[1723537715335,6.8866,145.21,145.15,30.6739]
[1723537715545,6.8872,145.2,145.15,23.7848]
[1723537715850,20.0,145.24,145.15,23.7848]
[1723537715851,6.8884,145.18,145.15,6.5624]
[1723537716215,6.8875,145.19,145.15,6.5624]
[1723537716405,6.8875,145.19,145.15,7.93999439]
[1723537716607,6.8875,145.19,145.15,6.5624]
[1723537717631,17.2149,145.23,145.15,6.5624]
[1723537717632,6.8881,145.18,145.15,6.5624]
[1723537718414,6.8876,145.19,145.15,6.5624]
[1723537718911,6.8881,145.18,145.15,6.5624]
[1723537720436,6.8884,145.17,145.15,6.5624]
[1723537720944,6.888,145.18,145.15,6.5624]
[1723537721924,17.2171,145.21,145.15,6.5624]
[1723537722159,17.2171,145.21,145.14,16.0376]